Cogmind - Beta 14 @@@ ROGUE MODE // 2025.03.29 @ 16:58:37 Player: mix Result: Destroyed by 9W-3A3(R) with Subdweller Laser Performance ------------- Evolutions (0) 0 Regions Visited (2) 400 Robots Destroyed (11) 55 Value Destroyed (345) 345 Prototype IDs (0) 0 Alien Tech Used (0) 0 Bonus (0) 0 TOTAL SCORE: 800 Bonus ------- None Cogmind --------- Core Integrity 0/250 Matter 300/300 Energy 54/100 System Corruption 0% Temperature Cool (18) Movement Rolling (120) Ox1 Location -10/Subcaves Parts ------- > --- POWER (1) -------- (None) > --- PROPULSION (2) --- Subdweller Monowheel > --- UTILITY (2) ------ Large Storage Unit > --- WEAPON (2) ------- Subdweller Laser Subdweller Beam Cannon > --- INVENTORY (15) --- Disposable Heat Sink Medium Laser Particle Gun Subdweller Machine Gun Battle Cannon Flamer Peak State ------------ > --- POWER ------------ (None) > --- PROPULSION ------- Subdweller Monowheel > --- UTILITY ---------- Large Storage Unit Targeting Computer > --- WEAPON ----------- Subdweller Laser Subdweller Beam Cannon > --- INVENTORY -------- Disposable Heat Sink Medium Laser Particle Gun Subdweller Machine Gun Battle Cannon Flamer [Rating: 9] Favorites ----------- Power Ion Engine Engine Ion Engine Propulsion Light Treads Treads Light Treads Wheel Subdweller Monowheel Utility Large Storage Unit Storage Large Storage Unit Processor Targeting Computer Weapon Medium Laser Energy Gun Medium Laser Energy Cannon Subdweller Beam Cannon Ballistic Gun Subdweller Machine Gun Build | -11 -10 -10 ------- Run | Yrd Mat Sub Slots Evolved . | . . . Power . | . . . Propulsion . | . . . Utility . | . . . Weapon . | . . . Parts Attached 16 | 6 5 5 Power 2 | 1 1 . Engine 2 | 1 1 . Core . | . . . Reactor . | . . . Propulsion 3 | 2 . 1 Treads 2 | 2 . . Leg . | . . . Wheel 1 | . . 1 Hover . | . . . Flight . | . . . Utility 3 | 1 2 . Device . | . . . Storage 2 | 1 1 . Processor 1 | . 1 . Hackware . | . . . Protection . | . . . Artifact . | . . . Weapon 8 | 2 2 4 Energy Gun 6 | 2 2 2 Energy Cannon 1 | . . 1 Ballistic Gun 1 | . . 1 Ballistic Cannon . | . . . Launcher . | . . . Special Weapon . | . . . Impact Weapon . | . . . Slashing Weapon . | . . . Piercing Weapon . | . . . Special Melee Weapon . | . . . Unidentified Prototypes . | . . . Parts Lost 5 | . . 5 Power 1 | . . 1 Propulsion 2 | . . 2 Utility 1 | . . 1 Weapon 1 | . . 1 Highest Loss Streak 2 | . . 2 To Critical Strikes . | . . . Average Slot Usage (%) 79 | . 99 72 Engine 3 | . 14 . Treads 16 | . 28 13 Wheel 1 | . . 2 Storage 14 | . 14 14 Processor 13 | . 12 14 Energy Gun 27 | . 28 27 Peak Build Rating 9 | 6 8 9 Average Rating 6 | 4 6 6 On Entrance 4 | . 6 7 Naked Turns . | . . . Heaviest Build 32 | 12 30 32 Greatest Support 40 | 40 40 20 Greatest Overweight (x) 1 | . 1 1 Average Overweight (x) . | . . 1 Largest Inventory Capacity 15 | 8 15 15 Average Capacity 14 | 6 14 15 Most Carried 6 | 4 2 6 Average Carried 1 | . . 1 Final Capacity 15 | 8 15 15 Final Carried 6 | . 1 6 Class Distribution -------------------- 100% | Mutant Dominant Class ---------------- Mutant | -10/Materials Mutant | -10/Subcaves Resources | -11 -10 -10 ----------- Run | Yrd Mat Sub Matter Collected 375 | 109 107 159 Remotely . | . . . Salvage Created 467 | 74 216 177 Parts 22 | 2 11 9 Haulers Intercepted . | . . . Recyclers Shooed . | . . . Parts Field Recycled . | . . . Retrieved Matter . | . . . Parts Self-Destructed 9 | . . 9 Prevented . | . . . Kills | -11 -10 -10 ------- Run | Yrd Mat Sub Combat Hostiles Destroyed 8 | . 4 4 Guns 7 | . 3 4 Classes Destroyed 4 | 1 2 1 Builder 2 | . 2 . Recycler 1 | 1 . . Grunt 5 | . 4 1 Subdweller 3 | . . 3 Best Kill Streak 2 | 1 2 2 Combat Bots Only 2 | . 2 2 Max Kills in Single Turn 2 | 1 2 1 Gunslinging . | . . . Exploded . | . . . Melee . | . . . Uniques/NPCs Destroyed . | . . . Combat | -11 -10 -10 -------- Run | Yrd Mat Sub Hostile Shots Fired 55 | . 28 27 Missed 15 | . 7 8 Damage Taken 827 | . 312 515 Core 269 | . 92 177 Absorbed by Shields . | . . . Core Remaining (%) 100 | 100 . . Volleys Fired 43 | 5 21 17 Largest 2 | 2 2 2 Hottest 140 | 100 100 140 Shots Fired 85 | 10 42 33 Gun 83 | 10 42 31 Cannon 2 | . . 2 Launcher . | . . . Special . | . . . Kinetic 1 | . . 1 Thermal 84 | 10 42 32 Explosive . | . . . Electromagnetic . | . . . Robot Hit Streak 14 | 3 8 14 Robot Miss Streak 3 | 2 3 1 Penetration Max . | . . . Secondary Targets 1 | . . 1 Max Gunslinging Chain 1 | . . 1 Shots Hit Robots 58 | 7 28 23 Core Hits 21 | 2 10 9 Critical Kills . | . . . Critical Parts Destroyed . | . . . Critical Strikes 9 | 1 5 3 Burn 9 | 1 5 3 Melee Attacks . | . . . Impact . | . . . Slashing . | . . . Piercing . | . . . Sneak Attacks . | . . . Combat Hostiles . | . . . Follow-up Attacks . | . . . Damage Inflicted 804 | 87 388 329 Guns 747 | 87 388 272 Cannons 57 | . . 57 Explosions . | . . . Melee . | . . . Ramming . | . . . Kinetic . | . . . Thermal 804 | 87 388 329 Explosive . | . . . Electromagnetic . | . . . Impact . | . . . Slashing . | . . . Piercing . | . . . Highest Corruption . | . . . Average Corruption . | . . . Corruption Purged . | . . . Corruption Blocked . | . . . Overload Shots . | . . . Overflow Damage . | . . . Projectiles . | . . . Explosions . | . . . Melee . | . . . Knockbacks . | . . . Impact . | . . . Kinetic . | . . . Secondary . | . . . Self-Inflicted Damage . | . . . Shots . | . . . Rammed . | . . . Targets Rammed . | . . . Kicked . | . . . Crushed . | . . . Highest Temperature 379 | 195 379 12 Average Temperature 174 | 99 204 4 Received Heat Transfer 321 | . 195 126 Effects 4 | . 4 . Shutdowns 1 | . 1 . Energy Bleed 1 | . 1 . Matter Decay 1 | . 1 . Short Circuit 1 | . 1 . Siege Activations . | . . . Robots Corrupted . | . . . Combat Hostiles . | . . . Parts Fried . | . . . Impact Corruptions . | . . . Robots Melted 1 | . 1 . Combat Hostiles 1 | . 1 . Parts Melted 7 | 1 3 3 Heat Transferred 2911 | 333 1517 1061 Parts Sabotaged . | . . . Parts Stolen . | . . . Parts Stripped . | . . . Power Chain Reactions . | . . . Alert | -11 -10 -10 ------- Run | Yrd Mat Sub Peak Influence 158 | 5 158 . Initial 3 | . 3 . Average 81 | 2 92 . Maximum Alert Level . | . . . Low Security (%) 100 | 100 100 . Level 1 . | . . . Level 2 . | . . . Level 3 . | . . . Level 4 . | . . . Level 5 . | . . . High Security . | . . . Max Security . | . . . Squads Dispatched 1 | . 1 . Investigation 1 | . 1 . Extermination . | . . . Reinforcement . | . . . Assault . | . . . Garrison . | . . . Intercept . | . . . Searches Triggered . | . . . Construction Impeded . | . . . Haulers Reinforced . | . . . Active Scanning Responses . | . . . Cargo Convoy Interrupts . | . . . Stealth | -11 -10 -10 --------- Run | Yrd Mat Sub Distress Signals . | . . . Communications Jammed . | . . . Distress Signals . | . . . Times Spotted 12 | . 4 8 Peak Tracking Total 3 | . 3 2 Tactical Retreats 1 | . 1 . Traps | -11 -10 -10 ------- Run | Yrd Mat Sub Traps Triggered 4 | . 1 3 Indirectly . | . . . Trap Hack Attempts . | . . . Triggered . | . . . Disarmed . | . . . Reprogrammed . | . . . Reused . | . . . Traps Extracted . | . . . Installed . | . . . Triggered 1 | . . 1 Machines | -11 -10 -10 ---------- Run | Yrd Mat Sub Machines Disabled . | . . . Max in Single Turn . | . . . Machines Repaired . | . . . Machines Dismantled . | . . . Machines Sabotaged . | . . . Overloaded Fab Kills . | . . . Hacking | -11 -10 -10 --------- Run | Yrd Mat Sub Machines Accessed 2 | . 1 1 Terminals . | . . . Fabricators . | . . . Repair Stations . | . . . Recycling Units 1 | . 1 . Scanalyzers . | . . . Garrison Access . | . . . Total Hacks 7 | . 3 4 Successful 5 | . 1 4 Failed 2 | . 2 . Catastrophic . | . . . Database Lockouts . | . . . Manual 3 | . 3 . Terminals . | . . . Fabricators . | . . . Repair Stations . | . . . Recycling Units 3 | . 3 . Scanalyzers . | . . . Garrison Access . | . . . Terminal Hacks 4 | . . 4 Record 4 | . . 4 Fabricator Hacks . | . . . Repair Station Hacks . | . . . Recycling Unit Hacks . | . . . Scanalyzer . | . . . Garrison Access Hacks . | . . . Unauthorized Hacks . | . . . Terminals . | . . . Fabricators . | . . . Repair Stations . | . . . Recycling Units . | . . . Scanalyzers . | . . . Garrison Access . | . . . Data Cores Recovered . | . . . Used . | . . . Hacking Detections 1 | . 1 . Full Trace Events . | . . . Feedback Events . | . . . Feedback Blocked . | . . . Robot Schematics Acquired . | . . . Robots Built . | . . . Authchips . | . . . Time . | . . . Total Robot Build Rating . | . . . Part Schematics Acquired . | . . . Parts Built . | . . . Authchips . | . . . Time . | . . . Total Part Build Rating . | . . . Parts Repaired . | . . . Time . | . . . Parts Recycled . | . . . Recycled Matter . | . . . Retrieved Matter . | . . . Retrieved Components . | . . . Parts Scanalyzed . | . . . Part Schematics Acquired . | . . . Parts Damaged . | . . . Bothacking | -11 -10 -10 ------------ Run | Yrd Mat Sub Used RIF Installer . | . . . Robots Hacked . | . . . Non-combat . | . . . Combat . | . . . Robot Hacks Applied . | . . . Relay Couplers Released . | . . . Fabnet Peak Effective % . | . . . Robots Rewired . | . . . Allies Hacked . | . . . Hacks Repelled . | . . . Allies | -11 -10 -10 -------- Run | Yrd Mat Sub Total Allies . | . . . Largest Group . | . . . Highest-Rated Group . | . . . Highest-Rated Ally . | . . . Total Orders . | . . . Ally Attacks . | . . . Total Damage . | . . . Kills . | . . . Allies Corrupted . | . . . Allies Melted . | . . . Intel | -11 -10 -10 ------- Run | Yrd Mat Sub Robot Analysis Total . | . . . Derelict Logs Recovered 2 | . . 2 Drone Launches . | . . . Drone Recoveries . | . . . Exploration | -11 -10 -10 ------------- Run | Yrd Mat Sub Turns Passed 1914 | 64 454 1396 Spaces Moved 719 | 34 76 609 Core 15 | 15 . . Treads 527 | 19 76 432 Legs . | . . . Wheels 177 | . . 177 Hover . | . . . Flight . | . . . Fastest Speed 50 | 50 160 120 Average Speed 198 | 111 188 205 Slowest Speed 240 | 160 240 240 Overloaded Moves . | . . . Propulsion Burnouts . | . . . Robots Hopped . | . . . Cave-ins Triggered . | . . . Exploration Rate (%) 17 | 3 18 32 Regions Visited 2 Branch Regions 1 Pre-discovered Areas 2 | . . 2 Known Exits Taken . | . . . Unknown Exits Taken 2 | 1 1 . Scrap Searched 3 | . . 3 Spaces Dug . | . . . Terrain Destroyed . | . . . Melee . | . . . Projectile . | . . . AOE . | . . . Terrain Rammed . | . . . Walls Destroyed . | . . . Machines Disabled . | . . . Actions | -11 -10 -10 --------- Run | Yrd Mat Sub Total 1114 | 50 346 718 Wait 318 | . 238 80 Move 717 | 33 75 609 Hop . | . . . Pick Up 17 | 6 4 7 Fast Attach . | . . . Attach 10 | 6 2 2 Detach 1 | . 1 . Swap 6 | . 3 3 Drop 2 | . 2 . Fire 43 | 5 21 17 Melee . | . . . Ram . | . . . Kick . | . . . Crush . | . . . Escape Stasis . | . . . Rewire . | . . . Trap . | . . . Miscellaneous . | . . . Route ------- -11/Scrapyard -10/Materials -10/Subcaves History --------- Turn | Location | Event 9 | -11/Scrapyard | Discovered new exit (range 15) 65 | -11/Scrapyard | Entered Materials 303 | -10/Materials | Build established: Mutant 508 | -10/Materials | Discovered new exit (range 4) 519 | -10/Materials | Entered Subcaves 536 | -10/Subcaves | Core integrity fell below 50% 576 | -10/Subcaves | Learned location of Storage (-8) 974 | -10/Subcaves | Core integrity fell below 20% 1117 | -10/Subcaves | Visited Clippyterm 1125 | -10/Subcaves | Learned Factory trap positions 1125 | -10/Subcaves | Learned Factory emergency access door positions 1318 | -10/Subcaves | A swath of the cavern ceiling suddenly collapsed 1466 | -10/Subcaves | Shifting Twisted Machinery released Sub. Monowheel 1476 | -10/Subcaves | Shifting Twisted Machinery released Sub. Laser 1737 | -10/Subcaves | Learned location of Zion (-7) 1902 | -10/Subcaves | Ambushed by Subdwellers from Twisted Machinery 1915 | -10/Subcaves | Destroyed by 9W-3A3(R) with Subdweller Laser Last Messages --------------- Lgt. Treads destroyed. Searching scrap... Found Piercing Trap. Found Sub. Beam Cannon. Found 62 Matter. Acquired 13 matter. Acquired Sub. Beam Cannon. Acquired 10 matter. Searching scrap... Found Battle Cannon. Found 44 Matter. Acquired Battle Cannon. Searching scrap... Found Battle Cannon. Found Flamer. Found 51 Matter. Subatomizers dissect the Battle Cannon. Acquired Flamer. 9W-3A3(R) emerges from the Twisted Machinery. Targeting Computer destroyed. Map ----- +----------------------------------------------------+ | ?????????????????????????????????????????????????? | | ?????????????????????????????????????????????????? | | ?????????????????????????????????????????????????? | | ?????????????????????????????????????????????????? | | ?????????????????????????????????????????????????? | | ?????????????????????????????????????????????????? | | ??????####???????????????????????????????????????? | | ??????#" ?????????###???????????????????????????? | | ??????#""#?????????# #???????????????????????????? | | ??????#""####???####%#???????????????????????????? | | ??????#" %%"#####""]"#???????????????????????????? | | ??????# & # "##???????????????????????????? | | ###???##" ##" #????????????????????????????? | | # ###### ""## "####????????????????????????????? | | ######" "###?????????????????????????????? | | ### " ###???????????????????????????? | | #?????????????? ???????????? | | ## #???????????? ???????????? | | ##### ## ##?????????? ???????????? | | ????# ### ##?????????? ????????????? | | ????# ##?#######?????????? ??????????????? | | ???## ##########??###???? #???????????????? | | #### ## ## # #### #### "#???????????????? | | ## R "#????????????????? | | ## R #????????????????? | | ######## # # ## @# # "#??????????????? | | #??????###############?????? #??????????????? | | ##???????????????????????????????????????????? | | ###????????????????????????????????????????????? | | ###??????????????????????????????????????????????? | | ?????????????????????????????????????????????????? | | ?????????????????????????????????????????????????? | | ###??????????????????????????????????????????????? | | #??????????????????????????????????????????????? | | #?????????????????????????????????????????? | | #????????????????????????????????????????? | | # #????????????????????????????????????????? | | ?# #???????????????????????????????????????? | | ??# #???????????????????????????????????????? | | ??? #???????????????????????????????????????? | | ???? ##???????????????????????????????????????? | | ????? #????????????????????????????????????????? | | ?????? ?????????????????????????????????????????? | | ?????????????????????????????????????????????????? | | ?????????????????????????????????????????????????? | | ?????????????????????????????????????????????????? | | ?????????????????????????????????????????????????? | | ?????????????????????????????????????????????????? | | ?????????????????????????????????????????????????? | | ?????????????????????????????????????????????????? | +----------------------------------------------------+ Best States ------------- Heat Dissipation 25 Energy Generation 10 Energy Capacity 250 Matter Stores 300 Matter Capacity 300 Sight Range 16 Terrain Scan Density 10 Evasion (%) 50 Targeting Accuracy 5 Recoil Reduction 2 Item Schematics ----------------- None Robot Schematics ------------------ None Fabricated ------------ Nothing Alien Tech Used ----------------- None Achievements -------------- None Challenges ------------ None Game ------ Seed LatentChromaticShielding Manual? 0 Play Time 00:07:35 Cumulative 74.8 hours Start 2025.03.29 @ 16:51:11 End 2025.03.29 @ 16:58:37 Sessions 1 Manual Loads 0 Difficulty Rogue Special Mode None Game No. 111 Rogue 97 Adventurer 14 Explorer 0 Win Type - Total 0 Types 0/0/0/0/0/0/0/0/0 Lore% 34 Gallery% 46 Achievement% 41 Wizard Run 0 Options --------- Layout 1 ASCII 0 Keyboard 0 Movement Mouse Keybinds 0 Fullscreen 1 Font 24/Smallcaps Map View 50x35 Zoom Use 0% Tactical HUD 0 Map Filters NONE Filters NONE Steam 1 RUN: 6fcbf4bc-1a0f-48ae-ae5c-cbd75999edc6